bitfinex/quotes_SOLUSD_20260120
["timestamp","ask_amount","ask_price","bid_price","bid_amount"]
[1768892863704,3.55922987,131.43,131.4,0.2]
[1768892863915,3.55922987,131.44,131.4,0.2]
[1768892864405,26.62215738,131.47,131.4,0.2]
[1768892864406,3.55922987,131.45,131.4,4.40645442]
[1768892865697,4.06389593,131.44,131.4,4.40645442]
[1768892870022,4.06389593,131.43,131.4,0.2]
[1768892870421,4.06389593,131.45,131.41,4.20645442]
[1768892870728,4.06389593,131.43,131.4,4.40645442]
[1768892876424,4.06389593,131.43,131.4,0.2]
[1768892876630,4.44843755,131.4,131.34,0.2]
[1768892876803,4.44843755,131.39,131.34,3.75922987]
[1768892877001,4.44843755,131.4,131.35,3.55922987]
[1768892877219,4.44843755,131.41,131.36,3.55922987]
[1768892877418,4.44843755,131.41,131.36,11.17181269]
[1768892878128,3.55922987,131.42,131.36,7.61258282]
[1768892878311,4.44843755,131.43,131.38,3.55922987]
[1768892878628,4.44843755,131.43,131.39,4.25798425]
[1768892880433,8.00766742,131.43,131.39,4.25798425]
[1768892881633,4.44843755,131.42,131.39,4.25798425]
[1768892883432,4.44843755,131.42,131.38,4.25798425]
[1768892883742,8.00766742,131.42,131.38,4.25798425]
[1768892884040,4.44843755,131.43,131.38,4.25798425]
[1768892884226,4.44843755,131.43,131.39,4.25798425]
[1768892885045,102.04843755,131.45,131.41,4.25798425]
[1768892885717,4.44843755,131.44,131.41,4.25798425]
[1768892887619,102.04843755,131.45,131.41,4.25798425]
[1768892888741,4.44843755,131.44,131.41,4.25798425]
[1768892892841,3.55922987,131.47,131.42,4.25798425]
[1768892893045,4.44843755,131.48,131.44,4.25798425]
[1768892894348,4.44843755,131.49,131.46,4.25798425]
[1768892895742,4.44843755,131.5,131.46,4.25798425]
[1768892896462,4.44843755,131.51,131.47,4.25798425]
[1768892897337,8.00766742,131.51,131.47,4.25798425]
[1768892898635,8.00766742,131.51,131.47,4.22798426]
[1768892899036,8.00766742,131.5,131.47,4.22798426]
[1768892900850,8.00766742,131.5,131.44,4.25798425]
[1768892900851,4.44843755,131.48,131.44,4.25798425]
[1768892901055,8.00766742,131.48,131.44,4.25798425]
[1768892901752,4.44843755,131.48,131.44,4.25798425]
[1768892901951,8.00766742,131.48,131.44,4.25798425]
[1768892902151,4.44843755,131.47,131.44,4.25798425]
[1768892902337,4.44843755,131.48,131.44,4.25798425]
[1768892905764,4.16591484,131.47,131.44,4.25798425]
[1768892906058,4.16591484,131.46,131.42,4.20315415]
[1768892907657,4.16591484,131.47,131.43,4.20315415]
[1768892907847,4.16591484,131.48,131.44,4.20315415]
[1768892912342,7.72560308,131.48,131.44,4.20315415]
[1768892912559,4.16591484,131.48,131.44,4.20315415]
[1768892912736,7.72560308,131.48,131.44,4.20315415]
[1768892913251,4.16591484,131.48,131.44,4.20315415]
[1768892914762,3.55968824,131.49,131.44,4.20315415]
[1768892914933,129.61017811,131.5,131.45,4.20315415]
[1768892915450,4.16591484,131.49,131.45,4.20315415]
[1768892915663,97.6,131.5,131.45,4.20315415]
[1768892915837,5.34408856,131.52,131.48,4.20315415]
[1768892915838,4.16591484,131.52,131.48,4.20315415]
[1768892916766,4.16591484,131.52,131.49,4.20315415]
[1768892917265,4.16591484,131.52,131.46,4.20315415]
[1768892917266,7.72560308,131.5,131.46,4.20315415]
[1768892917460,4.16591484,131.5,131.46,4.20315415]
[1768892917764,7.72560308,131.5,131.46,4.20315415]
[1768892917939,3.55968824,131.5,131.46,4.20315415]
[1768892918147,4.16591484,131.48,131.45,4.20315415]
[1768892918971,7.72560308,131.48,131.45,4.20315415]
[1768892919172,4.16591484,131.47,131.44,4.20315415]
[1768892920044,7.72560308,131.48,131.44,4.20315415]
[1768892923676,4.16591484,131.48,131.44,4.20315415]
[1768892923858,7.72560308,131.48,131.44,4.20315415]
[1768892924464,4.16591484,131.48,131.44,4.20315415]
[1768892924954,4.2778102,131.49,131.45,4.13898347]
[1768892925150,20.9578102,131.5,131.45,4.13898347]
[1768892926056,4.2778102,131.49,131.45,4.13898347]
[1768892928969,11.88190986,131.51,131.45,4.13898347]
[1768892929175,4.2778102,131.5,131.46,4.13898347]
[1768892930255,7.83749844,131.5,131.46,4.13898347]
[1768892930972,4.2778102,131.49,131.46,4.13898347]
[1768892935185,101.97594536,131.52,131.47,4.13738722]
[1768892935479,105.5356336,131.52,131.47,4.13738722]
[1768892935678,4.37594536,131.52,131.47,4.13738722]
[1768892936671,7.9356336,131.52,131.47,4.13738722]
[1768892936872,7.9356336,131.53,131.48,4.13738722]
[1768892937077,7.9356336,131.53,131.49,4.13738722]
[1768892937078,4.37594536,131.53,131.49,4.13738722]
[1768892940381,4.37594536,131.52,131.49,4.13738722]
[1768892940605,3.55968824,131.51,131.47,4.13738722]
[1768892940779,3.55968824,131.48,131.44,4.13738722]
[1768892941162,7.9356336,131.48,131.44,4.13738722]
[1768892941473,4.37594536,131.46,131.42,4.13738722]
[1768892942884,7.9356336,131.46,131.42,4.13738722]
[1768892943091,4.37594536,131.46,131.42,4.13738722]
[1768892943277,7.9356336,131.46,131.42,4.13738722]
[1768892944066,4.37594536,131.46,131.42,4.13738722]
[1768892944266,7.9356336,131.46,131.42,4.13738722]
[1768892944768,4.37594536,131.47,131.42,4.13738722]
[1768892944968,4.37594536,131.49,131.44,4.13738722]
[1768892945188,4.37594536,131.48,131.44,4.13738722]
[1768892949577,4.37594536,131.5,131.45,4.13738722]
[1768892949783,7.9356336,131.5,131.45,4.13738722]
[1768892950086,4.37594536,131.49,131.45,4.13738722]
[1768892951498,7.9356336,131.49,131.45,4.13738722]
[1768892952992,4.37594536,131.5,131.45,4.13738722]
[1768892953193,7.9356336,131.5,131.46,4.13738722]
[1768892954295,4.37594536,131.5,131.46,4.13738722]
[1768892955486,9.72003392,131.54,131.5,4.13738722]
[1768892955703,4.37594536,131.54,131.5,4.10738726]
[1768892955900,4.37594536,131.53,131.5,4.10738726]
[1768892956099,7.9356336,131.53,131.5,4.10738726]
[1768892956603,4.37594536,131.53,131.5,4.10738726]
[1768892957691,4.37594536,131.53,131.49,4.13738722]
[1768892959505,4.37594536,131.56,131.5,7.60445394]
[1768892959801,4.37594536,131.54,131.5,4.13738722]
[1768892960204,4.31594536,131.54,131.5,4.13738722]
[1768892960879,11.16136012,131.56,131.5,4.13738722]
[1768892961080,3.55968824,131.55,131.5,4.13738722]
[1768892961612,16.76,131.57,131.5,11.7414945]
[1768892961779,16.76,131.57,131.51,4.13738722]
[1768892961980,3.55968824,131.56,131.51,4.13738722]
[1768892962307,7.9356336,131.56,131.51,4.13738722]
[1768892963210,4.18612575,131.55,131.51,4.13738722]
[1768892964111,4.18612575,131.55,131.52,4.35660124]
[1768892964809,20.94612575,131.57,131.53,4.35660124]
[1768892965882,0.1,131.57,131.54,4.35660124]
[1768892966083,8.15616423,131.63,131.52,4.35660124]
[1768892966284,4.38612575,131.62,131.58,4.35660124]
[1768892966685,4.38612575,131.62,131.58,7.91628948]
[1768892966899,4.38612575,131.62,131.58,7.90728252]
[1768892967412,0.2,131.62,131.6,4.35660124]
[1768892967582,0.2,131.62,131.6,7.90728252]
[1768892967780,0.2,131.62,131.61,4.35660124]
[1768892970708,0.2,131.62,131.59,4.35660124]
[1768892970915,4.38612575,131.62,131.59,4.35660124]
[1768892971610,4.38612575,131.62,131.57,4.35660124]
[1768892971814,4.18612575,131.61,131.57,4.35660124]
[1768892972007,4.18612575,131.61,131.56,4.35660124]
[1768892972209,3.55068128,131.61,131.56,4.35660124]
[1768892972410,4.18612575,131.59,131.54,11.95863601]
[1768892972619,4.18612575,131.59,131.54,7.90728252]
[1768892972904,4.18612575,131.59,131.55,11.9582336]
[1768892973711,4.18612575,131.59,131.55,4.35660124]
[1768892974392,7.73680703,131.59,131.55,4.35660124]
[1768892976220,4.18612575,131.58,131.55,4.35660124]
[1768892977019,4.18612575,131.59,131.55,4.35660124]
[1768892977917,7.73680703,131.59,131.55,4.35660124]
[1768892978146,4.18612575,131.59,131.55,4.35660124]
[1768892980024,7.73680703,131.6,131.55,4.35660124]
[1768892980202,4.18612575,131.6,131.55,4.35660124]
[1768892980397,16.86,131.62,131.6,4.35660124]
[1768892980398,0.2,131.62,131.6,4.35660124]
[1768892980598,4.28612575,131.64,131.6,4.35660124]
[1768892982004,4.28612575,131.64,131.6,7.90728252]
[1768892982318,4.28612575,131.64,131.61,4.35660124]
[1768892984008,0.1,131.68,131.64,4.24394384]
[1768892984212,0.1,131.68,131.65,3.55068128]
[1768892984417,16.66,131.67,131.64,7.79462512]
[1768892984930,0.1,131.68,131.64,7.79462512]
[1768892985426,16.66,131.67,131.64,7.79462512]
[1768892985730,0.1,131.68,131.64,7.79462512]
[1768892986231,16.66,131.67,131.65,7.79462512]
[1768892986425,3.22597255,131.68,131.65,3.55068128]
[1768892986616,16.66,131.67,131.65,3.55068128]
[1768892986929,16.66,131.67,131.64,7.79462512]
[1768892988809,3.22597255,131.68,131.64,7.79462512]
[1768892989010,16.66,131.67,131.64,7.79462512]
[1768892989411,16.66,131.66,131.64,7.79462512]
[1768892989828,16.66,131.67,131.65,3.55068128]
[1768892990020,16.66,131.67,131.64,7.79462512]
[1768892990218,16.66,131.67,131.64,4.24394384]
[1768892990519,16.66,131.67,131.64,7.79462512]
[1768892991023,16.16,131.67,131.64,7.79462512]
[1768892991223,16.16,131.67,131.64,4.24394384]
[1768892991416,3.22597255,131.68,131.64,7.79462512]
[1768892991626,0.1,131.68,131.66,4.24394384]
[1768892991818,16.76,131.68,131.65,7.79462512]
[1768892992019,16.76,131.68,131.66,4.24394384]
[1768892992628,16.76,131.68,131.65,7.79462512]
[1768892993414,16.76,131.68,131.66,4.23614138]
[1768892993819,0.1,131.68,131.66,4.23614138]
[1768892994031,16.74,131.68,131.66,7.78682266]
[1768892994222,16.74,131.68,131.67,4.23614138]
[1768892994918,0.1,131.68,131.66,4.23614138]
[1768892995119,16.74,131.68,131.66,7.78682266]
[1768892995516,16.74,131.68,131.66,3.55068128]
[1768892995734,0.1,131.7,131.68,4.23614138]
[1768892995932,1e-08,131.72,131.7,4.23614138]
[1768892996231,0.2,131.75,131.73,8.20132026]
[1768892996528,3.32597255,131.75,131.73,3.93360339]
[1768892996729,23.2853941,131.74,131.73,3.90234366]
[1768892996934,3.06376569,131.73,131.69,4.23614138]
[1768892997230,3.06376569,131.72,131.67,4.23614138]
[1768892997438,6.61444697,131.72,131.67,4.23614138]
[1768892997612,3.06376569,131.71,131.67,4.23614138]
[1768892997808,19.70376569,131.71,131.67,4.23614138]
[1768892998032,3.26376569,131.75,131.68,4.23614138]
[1768892998238,16.64,131.74,131.7,4.23614138]
[1768892998536,0.2,131.78,131.74,4.23614138]
[1768892998714,0.2,131.78,131.74,3.90808788]
[1768892998914,3.75068128,131.78,131.74,3.90808788]
[1768892999117,7.33721993,131.78,131.74,3.90808788]
[1768892999514,3.55068128,131.77,131.72,3.55068128]
[1768892999717,7.13721993,131.76,131.67,21.98408856]
[1768892999925,3.58653865,131.76,131.67,21.98408856]
[1768893000134,3.58653865,131.75,131.67,21.98408856]
[1768893000334,7.13721993,131.75,131.68,7.59389701]
[1768893000536,3.58653865,131.72,131.66,3.55068128]
[1768893000714,7.13721993,131.72,131.66,3.55068128]
[1768893000919,7.13721993,131.72,131.67,7.78682266]
[1768893000920,3.58653865,131.72,131.67,7.78682266]
[1768893001120,3.58653865,131.72,131.68,4.23614138]
[1768893001321,3.58653865,131.76,131.72,4.23614138]
[1768893001643,16.64,131.77,131.72,3.55068128]
[1768893001838,20.28666158,131.77,131.7,7.59293188]
[1768893002015,3.84666158,131.78,131.73,3.55068128]
[1768893002214,3.55068128,131.77,131.71,7.59224843]
[1768893002438,3.55068128,131.77,131.72,3.55068128]
[1768893002628,0.2,131.78,131.73,3.55068128]
[1768893003032,0.2,131.78,131.73,8.69818231]
[1768893003540,0.2,131.78,131.73,12.93432369]
[1768893003726,7.78844359,131.78,131.73,4.23614138]
[1768893003925,0.2,131.78,131.73,12.93432369]
[1768893004442,0.2,131.78,131.75,4.23614138]
[1768893005225,0.2,131.78,131.73,4.23614138]
[1768893005520,8.89818231,131.78,131.73,4.23614138]
[1768893005735,12.34484389,131.77,131.73,4.23614138]
[1768893005931,3.64666158,131.77,131.73,4.23614138]
[1768893006123,3.64666158,131.77,131.73,12.93432369]
[1768893006340,0.2,131.78,131.75,12.93432369]
[1768893007436,0.2,131.78,131.75,4.23614138]
[1768893009864,0.2,131.78,131.75,12.93432369]
[1768893010428,0.2,131.78,131.75,4.23614138]
[1768893010649,0.2,131.78,131.75,12.93432369]
[1768893010833,3.84666158,131.78,131.73,4.23614138]
[1768893011150,3.84666158,131.78,131.73,12.93432369]
[1768893011346,3.84666158,131.78,131.74,8.69818231]
[1768893011549,3.64666158,131.77,131.72,4.23614138]
[1768893011737,3.64666158,131.77,131.72,12.93432369]
[1768893011922,3.64666158,131.77,131.72,20.52617548]
[1768893012552,3.64666158,131.75,131.7,12.93432369]
[1768893012742,3.64666158,131.75,131.7,11.82908505]
[1768893013053,20.28666158,131.76,131.72,8.69818231]
[1768893013551,28.98484389,131.76,131.71,4.23614138]
[1768893013852,12.34484389,131.74,131.69,12.93432369]
[1768893014250,12.34484389,131.73,131.68,12.93432369]
[1768893014556,3.64666158,131.73,131.68,12.93432369]
[1768893014728,3.64666158,131.73,131.68,4.23614138]
[1768893015054,12.34484389,131.73,131.68,12.93432369]
[1768893015439,12.34484389,131.73,131.68,4.23614138]
[1768893015750,8.69818231,131.72,131.68,4.23614138]
[1768893015958,12.34484389,131.73,131.68,12.93432369]
[1768893016155,12.34484389,131.73,131.68,4.23614138]
[1768893016330,12.34484389,131.73,131.68,12.93432369]
[1768893016654,3.64666158,131.73,131.68,12.93432369]
[1768893017154,12.34484389,131.73,131.68,12.93432369]
[1768893017357,3.64666158,131.73,131.68,4.23614138]
[1768893017758,12.34484389,131.73,131.68,4.23614138]
[1768893017927,12.34484389,131.71,131.66,12.93432369]
[1768893018126,12.34484389,131.7,131.66,4.23614138]
[1768893018331,12.34484389,131.7,131.65,4.23614138]
[1768893018558,3.64666158,131.7,131.65,4.23614138]
[1768893018760,20.28666158,131.72,131.67,8.69818231]
[1768893019068,16.64,131.74,131.71,4.23614138]
[1768893019259,16.64,131.74,131.7,8.69818231]
[1768893019434,16.64,131.74,131.7,12.93432369]
[1768893020656,3.64666158,131.75,131.71,4.23614138]
[1768893021045,12.34484389,131.75,131.71,4.23614138]
[1768893021356,12.34484389,131.75,131.69,7.59355354]
[1768893021357,3.64666158,131.74,131.69,12.93432369]
[1768893021535,12.34484389,131.74,131.69,4.23614138]
[1768893021858,12.34484389,131.74,131.69,12.93432369]
[1768893022963,8.69818231,131.73,131.69,4.23614138]
[1768893023852,3.64666158,131.72,131.67,4.42695347]
[1768893024059,12.34484389,131.72,131.68,4.42695347]
[1768893024238,3.64666158,131.72,131.68,4.42695347]
[1768893025364,7.19253992,131.7,131.65,4.42695347]
[1768893025541,7.19253992,131.7,131.66,4.42695347]
[1768893025967,3.64666158,131.7,131.66,4.42695347]
[1768893026665,7.19253992,131.71,131.66,7.97283181]
[1768893026867,16.64,131.72,131.67,4.42695347]
[1768893027063,16.64,131.72,131.69,4.42695347]
[1768893027452,3.64666158,131.7,131.65,4.42695347]
[1768893027760,3.54587834,131.68,131.65,4.42695347]
[1768893027961,3.54587834,131.68,131.64,4.42695347]
[1768893028966,8.71238442,131.68,131.64,4.42695347]
[1768893029851,25.35238442,131.69,131.65,4.42695347]
[1768893030251,8.71238442,131.69,131.65,4.42695347]
[1768893030749,27.87971555,131.7,131.65,4.42695347]
[1768893031061,8.71238442,131.69,131.65,4.42695347]
[1768893031363,12.359046,131.68,131.64,4.42695347]
[1768893032141,3.64666158,131.66,131.62,4.42695347]
[1768893032342,8.71238442,131.65,131.6,12.02561264]
[1768893032547,8.71238442,131.65,131.6,4.42695347]
[1768893032850,8.71238442,131.66,131.61,4.42695347]
[1768893033049,16.30776876,131.66,131.61,4.42695347]
[1768893033262,8.71238442,131.65,131.61,4.42695347]
[1768893033447,8.71238442,131.65,131.6,8.71238442]
[1768893033765,8.71238442,131.65,131.61,4.42695347]
[1768893033964,8.71238442,131.66,131.61,13.13933789]
[1768893034151,8.71238442,131.66,131.61,4.42695347]
[1768893034352,12.29964596,131.66,131.61,4.42695347]
[1768893035864,8.71238442,131.65,131.61,4.42695347]
[1768893038197,11.18266385,131.66,131.61,4.42695347]
[1768893038349,8.71238442,131.65,131.61,4.42695347]
[1768893039176,12.29964596,131.65,131.61,4.42695347]
[1768893039348,3.58726154,131.65,131.61,4.42695347]
[1768893039671,12.29964596,131.65,131.61,4.42695347]
[1768893040568,12.29964596,131.64,131.6,4.42695347]
[1768893040758,8.71238442,131.62,131.59,4.42695347]
[1768893040946,3.58726154,131.64,131.59,4.42695347]
[1768893041147,3.58726154,131.64,131.59,13.13933789]
[1768893041368,3.58726154,131.64,131.6,4.42695347]
[1768893042560,20.22726154,131.65,131.6,4.42695347]
[1768893042879,16.64,131.65,131.61,4.36921485]
[1768893043976,25.35238442,131.65,131.61,4.36921485]
[1768893045287,16.64,131.65,131.61,4.36921485]
[1768893046161,20.22726154,131.65,131.61,4.36921485]
[1768893048462,20.22726154,131.65,131.61,13.08159927]
[1768893048661,20.22726154,131.65,131.61,4.36921485]
[1768893049460,3.58726154,131.64,131.6,4.36921485]
[1768893049684,3.58726154,131.64,131.6,13.08159927]
[1768893050381,3.58726154,131.64,131.6,4.36921485]
[1768893050682,36.53563152,131.65,131.61,4.36921485]
[1768893050872,31.3730208,131.65,131.61,4.36921485]
[1768893051875,3.58726154,131.64,131.6,7.91898855]
[1768893052276,3.58726154,131.64,131.6,4.36921485]
[1768893052473,24.23598556,131.65,131.6,3.5497737]
[1768893052678,20.22726154,131.65,131.61,4.36921485]
[1768893053280,23.77703524,131.65,131.61,4.36921485]
[1768893053662,31.37297537,131.65,131.61,4.36921485]
[1768893056389,27.82320167,131.65,131.61,4.36921485]
[1768893056686,23.77703524,131.65,131.61,4.36921485]
[1768893058094,121.37703524,131.65,131.61,4.36921485]
[1768893058293,128.9729773,131.65,131.61,4.36921485]
[1768893059497,3.58726154,131.64,131.6,4.09740528]
[1768893060297,3.58726154,131.61,131.58,0.2]
[1768893060496,7.07703518,131.61,131.58,4.29740528]
[1768893060679,20.1897737,131.62,131.58,4.29740528]
[1768893061082,16.64,131.62,131.58,4.29740528]
[1768893061402,16.64,131.62,131.58,7.84717898]
[1768893061998,16.64,131.62,131.58,4.29740528]
[1768893062194,101.1497737,131.63,131.58,4.29740528]
[1768893062494,3.52786148,131.62,131.58,4.29740528]
[1768893063894,114.24,131.63,131.6,4.09740528]
[1768893064100,97.6,131.63,131.6,4.09740528]
[1768893064702,97.6,131.63,131.61,4.09740528]
[1768893069798,31.31355971,131.65,131.61,4.09740528]
[1768893070103,3.52786148,131.64,131.61,4.09740528]
[1768893071008,3.52786148,131.64,131.58,0.2]
[1768893071009,14.67414667,131.64,131.6,4.09740528]
[1768893071213,7.07763518,131.64,131.6,4.09740528]
[1768893071590,7.07763518,131.62,131.58,4.29740528]
[1768893071995,3.5497737,131.61,131.58,4.29740528]
[1768893072408,3.52786148,131.62,131.58,4.29740528]
[1768893072616,3.5497737,131.61,131.58,4.29740528]
[1768893072827,7.07763518,131.61,131.58,0.2]
[1768893072995,3.5497737,131.6,131.58,0.2]
[1768893073386,3.5497737,131.59,131.58,0.2]
[1768893073587,3.5497737,131.59,131.54,4.09740528]
[1768893073891,3.5497737,131.59,131.54,7.64717898]
[1768893074094,3.5497737,131.59,131.53,7.60257158]
[1768893074095,3.5497737,131.59,131.55,4.09740528]
[1768893074598,7.07763518,131.59,131.55,4.09740528]
[1768893074793,7.01763513,131.59,131.55,4.09740528]
[1768893075292,6.95763513,131.59,131.55,4.09740528]
[1768893075923,7.07763518,131.6,131.55,4.09740528]
[1768893076117,3.5497737,131.6,131.55,4.09740528]
[1768893077015,7.07763518,131.59,131.55,4.09740528]
[1768893078522,7.07763518,131.58,131.55,4.09740528]
[1768893078718,7.07763518,131.57,131.53,4.09740528]
[1768893078921,3.5497737,131.57,131.53,4.09740528]
[1768893080122,7.07763518,131.58,131.53,4.09740528]
[1768893081024,3.5497737,131.57,131.53,4.09740528]
[1768893081226,3.4897737,131.57,131.52,4.09740528]
[1768893082015,7.01763518,131.57,131.52,4.09740528]
[1768893082214,14.61820144,131.57,131.52,4.09740528]
[1768893082721,3.52786148,131.57,131.52,4.09740528]
[1768893082925,7.07763518,131.57,131.52,4.09740528]
[1768893083505,3.52786148,131.57,131.52,4.09740528]
[1768893084126,24.25962205,131.59,131.53,4.49190836]
[1768893084317,27.80939575,131.59,131.54,4.49190836]
[1768893084626,31.33725723,131.59,131.54,4.49190836]
[1768893085132,3.52786148,131.58,131.54,4.49190836]
[1768893085455,27.78748353,131.59,131.54,4.49190836]
[1768893085729,3.5497737,131.58,131.54,4.49190836]
[1768893086031,27.78748353,131.59,131.54,4.49190836]
[1768893086210,3.5497737,131.58,131.54,4.49190836]
[1768893088532,16.66,131.59,131.55,4.49190836]
[1768893090917,20.21294187,131.59,131.55,4.49190836]
[1768893091611,23.74080335,131.59,131.55,4.49190836]
[1768893093334,3.55294187,131.58,131.55,4.49190836]
[1768893093917,20.18786148,131.59,131.55,4.49190836]
[1768893094122,3.55294187,131.58,131.55,4.49190836]
[1768893094433,3.55294187,131.56,131.49,4.49190836]
[1768893094621,3.55294187,131.57,131.52,4.49190836]
[1768893095009,3.52786148,131.58,131.52,4.49190836]
[1768893095225,3.55294187,131.57,131.53,4.49190836]
[1768893098012,3.52786148,131.58,131.53,4.49190836]
[1768893098213,3.55294187,131.57,131.53,4.49190836]
[1768893098827,3.52786148,131.58,131.53,4.49190836]
[1768893099022,3.55294187,131.57,131.53,4.49190836]
[1768893099724,3.52786148,131.56,131.52,4.49190836]
[1768893099924,3.52786148,131.58,131.53,4.49190836]
[1768893100125,7.08080335,131.58,131.53,4.49190836]
[1768893101538,7.08080335,131.58,131.53,12.0946899]
[1768893101712,7.08080335,131.58,131.54,4.49190836]
[1768893103249,3.52786148,131.58,131.54,4.49190836]
[1768893103419,7.08080335,131.58,131.54,4.49190836]
[1768893104434,7.08080335,131.55,131.52,4.15816678]
[1768893104922,3.55294187,131.54,131.52,4.15816678]
[1768893105319,7.08080335,131.55,131.52,4.15816678]
[1768893108343,7.08080335,131.55,131.5,7.60455505]
[1768893108344,7.08080335,131.53,131.5,4.15816678]
[1768893109343,23.74080335,131.53,131.5,4.15816678]
[1768893109558,20.18786148,131.53,131.5,4.15816678]
[1768893109726,23.74080335,131.53,131.5,4.15816678]
[1768893110342,20.21294187,131.53,131.5,4.15816678]
[1768893111436,20.18786148,131.53,131.5,4.15816678]
[1768893111641,23.74080335,131.53,131.5,4.15816678]
[1768893112148,23.68080335,131.53,131.5,4.15816678]
[1768893113852,20.12786148,131.53,131.5,4.15816678]
[1768893114055,23.68080335,131.53,131.5,4.15816678]
[1768893117846,20.12786148,131.53,131.5,4.15816678]
[1768893118760,16.6,131.53,131.5,4.15816678]
[1768893119558,16.53999999,131.53,131.5,4.15816678]
[1768893120546,3.52786148,131.55,131.51,4.19936087]
[1768893120860,16.66,131.54,131.51,4.19936087]
[1768893121066,97.53999999,131.6,131.54,4.19936087]
[1768893121250,11.04316189,131.61,131.56,4.19936087]
[1768893121444,3.52786148,131.61,131.57,4.19936087]
[1768893121638,3.52786148,131.61,131.57,3.8713321]
[1768893122049,14.67905451,131.61,131.57,3.8713321]
[1768893122249,7.40555183,131.6,131.57,3.8713321]
[1768893122456,7.40555183,131.6,131.54,11.15493058]
[1768893122659,7.40555183,131.59,131.53,7.60258301]
[1768893122959,7.40555183,131.57,131.52,3.55294187]
[1768893123467,7.40555183,131.57,131.52,11.15603729]
[1768893123653,3.55294187,131.57,131.53,4.19936087]
[1768893124265,7.40555183,131.58,131.53,4.19936087]
[1768893125666,7.40555183,131.56,131.5,4.19936087]
[1768893125847,7.40555183,131.55,131.5,4.19936087]
[1768893127864,3.85260996,131.54,131.5,4.19936087]
[1768893128759,7.40555183,131.55,131.5,4.19936087]
[1768893129970,7.40555183,131.55,131.51,4.19936087]
[1768893131071,3.85260996,131.55,131.51,4.19936087]
[1768893131257,16.66,131.56,131.53,4.19936087]
[1768893131570,16.66,131.56,131.53,4.16936088]
[1768893132972,16.66,131.56,131.47,19.2151674]
[1768893132973,7.72844866,131.54,131.47,19.2151674]
[1768893133149,4.17550679,131.54,131.49,7.60501245]
[1768893133347,7.72844866,131.54,131.49,7.60501245]
[1768893133757,7.72844866,131.54,131.47,19.2151674]
[1768893133758,7.72844866,131.52,131.47,7.80604041]
[1768893134268,7.72844866,131.52,131.47,11.35898228]
[1768893134446,7.72844866,131.52,131.48,7.60565438]
[1768893134852,3.55294187,131.52,131.49,4.19936087]
[1768893135460,4.17550679,131.53,131.49,4.19936087]
[1768893137774,7.72844866,131.53,131.49,4.19936087]
[1768893138374,4.17550679,131.53,131.49,4.19936087]
[1768893140968,7.72844866,131.53,131.49,4.19936087]
[1768893141767,4.17550679,131.53,131.49,4.19936087]
[1768893142680,4.17550679,131.53,131.49,20.85936087]
[1768893144161,4.17550679,131.53,131.5,4.1894935]
[1768893144677,7.72844866,131.53,131.5,4.1894935]
[1768893147065,4.2210536,131.55,131.5,4.1894935]
[1768893147278,4.2210536,131.55,131.51,4.1894935]
[1768893147574,4.2210536,131.55,131.52,20.8494935]
[1768893147965,105.14076855,131.57,131.53,4.1894935]
[1768893147966,7.77399547,131.57,131.53,4.1894935]
[1768893148365,4.2210536,131.57,131.53,4.1894935]
[1768893149960,7.77399547,131.57,131.53,4.1894935]
[1768893152886,7.77537088,131.57,131.53,4.1894935]
[1768893153185,7.77537088,131.57,131.54,16.66]
[1768893153688,4.2210536,131.57,131.54,20.8494935]
[1768893157883,4.2210536,131.57,131.54,4.1894935]
[1768893158185,4.2210536,131.57,131.54,20.8494935]
[1768893158592,4.2210536,131.57,131.54,4.1894935]
[1768893158892,4.2210536,131.57,131.54,20.8494935]
[1768893160190,4.2210536,131.57,131.54,4.1894935]
[1768893160393,4.2210536,131.57,131.54,20.8494935]
[1768893161169,4.2210536,131.57,131.54,4.1894935]
[1768893161364,4.2210536,131.57,131.54,20.8494935]
[1768893168281,4.2210536,131.57,131.54,4.1894935]
[1768893168485,4.2210536,131.57,131.54,20.8494935]
[1768893169595,4.2210536,131.57,131.54,4.1894935]
[1768893169810,4.2210536,131.57,131.54,20.8494935]
[1768893172780,4.49314665,131.56,131.53,16.66]
[1768893173501,4.49314665,131.56,131.53,20.97160108]
[1768893173804,4.49314665,131.56,131.53,4.31160108]
[1768893173982,4.49314665,131.56,131.53,20.97160108]
[1768893174689,4.49314665,131.56,131.54,4.31160108]
[1768893174888,4.49314665,131.56,131.53,20.97160108]
[1768893176398,7.91746881,131.57,131.54,4.31160108]
[1768893176907,4.36315153,131.56,131.54,4.31160108]
[1768893177385,4.36315153,131.56,131.53,20.97160108]
[1768893178893,4.36315153,131.56,131.54,4.31160108]
[1768893179405,4.36315153,131.56,131.53,16.66]
[1768893179592,4.36315153,131.56,131.53,20.97160108]
[1768893180701,4.36315153,131.56,131.53,4.31160108]
[1768893181003,4.36315153,131.56,131.53,20.97160108]
[1768893181806,4.36315153,131.56,131.52,4.31160108]
[1768893182011,4.36315153,131.55,131.53,16.66]
[1768893182712,4.36315153,131.55,131.5,11.15865189]